[Event "Early-Titled-Tuesday-Blitz-March-26-2024"]
[Site "Chess.com"]
[Date "2024.03.26"]
[Round "8"]
[White "quizden37"]
[Black "Bauman_Guy"]
[Result "1-0"]
[WhiteElo "2866"]
[BlackElo "2899"]
[TimeControl "180+1"]
[EndTime "9:26:03 PDT"]
[Termination "quizden37 won by resignation"]

1. e4 {[%clk 0:03:00.4]} 1... c5 {[%clk 0:03:00.1]} 2. Nf3 {[%clk 0:03:00.2]}
2... d6 {[%clk 0:03:00.6]} 3. Nc3 {[%clk 0:02:59.8]} 3... Nf6 {[%clk 0:03:00.8]}
4. d4 {[%clk 0:02:59.5]} 4... cxd4 {[%clk 0:03:00.8]} 5. Nxd4 {[%clk 0:03:00.4]}
5... a6 {[%clk 0:03:01.3]} 6. Bg5 {[%clk 0:03:00.5]} 6... Nbd7 {[%clk
0:03:01.4]} 7. f4 {[%clk 0:03:00.8]} 7... Qa5 {[%clk 0:02:58.4]} 8. Nb3 {[%clk
0:02:56.8]} 8... Qc7 {[%clk 0:02:57]} 9. Qe2 {[%clk 0:02:54.2]} 9... e6 {[%clk
0:02:57.3]} 10. g4 {[%clk 0:02:53.8]} 10... b5 {[%clk 0:02:55.5]} 11. a3 {[%clk
0:02:54.1]} 11... Bb7 {[%clk 0:02:55.6]} 12. O-O-O {[%clk 0:02:54.3]} 12... Be7
{[%clk 0:02:53.7]} 13. Bg2 {[%clk 0:02:54.7]} 13... Nb6 {[%clk 0:02:50.2]} 14.
h4 {[%clk 0:02:36.8]} 14... Nc4 {[%clk 0:02:47.2]} 15. e5 {[%clk 0:02:32.9]}
15... dxe5 {[%clk 0:02:39.3]} 16. fxe5 {[%clk 0:02:29.1]} 16... Ng8 {[%clk
0:02:27.9]} 17. Bxb7 {[%clk 0:02:20.3]} 17... Qxb7 {[%clk 0:02:28.8]} 18. Ne4
{[%clk 0:02:20.4]} 18... h6 {[%clk 0:01:56.4]} 19. Bxe7 {[%clk 0:02:13.9]} 19...
Nxe7 {[%clk 0:01:55]} 20. Na5 {[%clk 0:02:14]} 20... Qc7 {[%clk 0:01:30.6]} 21.
Nxc4 {[%clk 0:02:12.2]} 21... bxc4 {[%clk 0:01:12.7]} 22. Nd6+ {[%clk
0:02:12.3]} 22... Kf8 {[%clk 0:01:13.2]} 23. Qf3 {[%clk 0:02:12.5]} 23... Nd5
{[%clk 0:01:09.9]} 24. Rhf1 {[%clk 0:02:06.4]} 24... Kg8 {[%clk 0:01:07.1]} 25.
Rxd5 {[%clk 0:01:53.9]} 25... exd5 {[%clk 0:01:04.4]} 26. Qxd5 {[%clk
0:01:54.8]} 26... Rf8 {[%clk 0:00:51.8]} 27. e6 {[%clk 0:01:54.2]} 27... fxe6
{[%clk 0:00:42.7]} 28. Rxf8+ {[%clk 0:01:22.8]} 28... Kxf8 {[%clk 0:00:43.6]}
29. Qxe6 {[%clk 0:01:23.5]} 29... g5 {[%clk 0:00:44.1]} 30. h5 {[%clk
0:00:31.9]} 30... Rh7 {[%clk 0:00:21.9]} 31. Qe8+ {[%clk 0:00:13.7]} 31... Kg7
{[%clk 0:00:21.9]} 32. Nf5+ {[%clk 0:00:13.4]} 32... Kf6 {[%clk 0:00:21.9]} 33.
Qf8+ {[%clk 0:00:10.3]} 33... Ke6 {[%clk 0:00:16.3]} 34. Qg8+ {[%clk 0:00:09.7]}
34... Ke5 {[%clk 0:00:15.1]} 35. Kb1 {[%clk 0:00:09]} 35... Rd7 {[%clk
0:00:14.2]} 36. Qe8+ {[%clk 0:00:07.8]} 36... Kd5 {[%clk 0:00:11.4]} 37. Nxh6
{[%clk 0:00:06]} 37... Kc5 {[%clk 0:00:10.3]} 38. Nf5 {[%clk 0:00:06.4]} 38...
Kb6 {[%clk 0:00:09.2]} 39. Qe6+ {[%clk 0:00:06.2]} 39... Qc6 {[%clk 0:00:08.5]}
40. Qe3+ {[%clk 0:00:05.9]} 40... Qc5 {[%clk 0:00:08.4]} 41. Qxg5 {[%clk
0:00:05.7]} 41... c3 {[%clk 0:00:05.9]} 42. Qf6+ {[%clk 0:00:06.1]} 42... Ka7
{[%clk 0:00:05.8]} 43. Qxc3 {[%clk 0:00:07]} 43... Rd1+ {[%clk 0:00:03.6]} 44.
Ka2 {[%clk 0:00:07.4]} 44... Qd5+ {[%clk 0:00:04]} 45. Qb3 {[%clk 0:00:07.9]}
45... Qh1 {[%clk 0:00:02]} 46. Qe3+ {[%clk 0:00:08.2]} 46... Ka8 {[%clk
0:00:02.9]} 47. h6 {[%clk 0:00:07.5]} 47... Ra1+ {[%clk 0:00:03]} 48. Kb3 {[%clk
0:00:07]} 48... Qd5+ {[%clk 0:00:03.9]} 49. c4 {[%clk 0:00:07.5]} 49... Qd1+
{[%clk 0:00:04.4]} 50. Kb4 {[%clk 0:00:08.1]} 50... Rb1 {[%clk 0:00:04.2]} 51.
b3 {[%clk 0:00:08]} 51... Qc1 {[%clk 0:00:03.3]} 52. Qxc1 {[%clk 0:00:07.9]}
52... Rxc1 {[%clk 0:00:04.2]} 53. g5 {[%clk 0:00:08.4]} 53... Rf1 {[%clk
0:00:04.8]} 54. h7 {[%clk 0:00:08]} 1-0

[Event "Early-Titled-Tuesday-Blitz-March-26-2024"]
[Site "Chess.com"]
[Date "2024.03.26"]
[Round "8"]
[White "TigrVShlyape"]
[Black "Mysterio47"]
[Result "1/2-1/2"]
[WhiteElo "2902"]
[BlackElo "2726"]
[TimeControl "180+1"]
[EndTime "9:26:03 PDT"]
[Termination "Game drawn - insufficient material"]

1. e4 {[%clk 0:03:00.9]} 1... e5 {[%clk 0:02:58.8]} 2. Nf3 {[%clk 0:02:56.4]}
2... Nc6 {[%clk 0:02:59]} 3. Bb5 {[%clk 0:02:55.2]} 3... Nf6 {[%clk 0:02:59.3]}
4. O-O {[%clk 0:02:53.3]} 4... Nxe4 {[%clk 0:02:59.2]} 5. d4 {[%clk 0:02:53.1]}
5... Nd6 {[%clk 0:02:59.7]} 6. Bxc6 {[%clk 0:02:53]} 6... dxc6 {[%clk
0:03:00.6]} 7. dxe5 {[%clk 0:02:53.4]} 7... Nf5 {[%clk 0:03:01.5]} 8. Qxd8+
{[%clk 0:02:52.3]} 8... Kxd8 {[%clk 0:03:02.4]} 9. Rd1+ {[%clk 0:02:52.2]} 9...
Ke8 {[%clk 0:03:02.6]} 10. Nc3 {[%clk 0:02:52.7]} 10... Be7 {[%clk 0:03:03]} 11.
h3 {[%clk 0:02:49.1]} 11... Nh4 {[%clk 0:02:59.6]} 12. Nxh4 {[%clk 0:02:47.4]}
12... Bxh4 {[%clk 0:03:00.5]} 13. Bf4 {[%clk 0:02:32.3]} 13... Bf5 {[%clk
0:02:59.2]} 14. Rd2 {[%clk 0:02:29.1]} 14... Rd8 {[%clk 0:02:58]} 15. Rad1
{[%clk 0:02:28.2]} 15... Rxd2 {[%clk 0:02:57.5]} 16. Rxd2 {[%clk 0:02:28.3]}
16... Be7 {[%clk 0:02:57.7]} 17. g4 {[%clk 0:02:25.4]} 17... Bg6 {[%clk
0:02:57.6]} 18. Kg2 {[%clk 0:02:14.2]} 18... h5 {[%clk 0:02:48.5]} 19. f3 {[%clk
0:02:07.4]} 19... a5 {[%clk 0:02:42]} 20. Ne2 {[%clk 0:02:01.3]} 20... Bb4
{[%clk 0:02:38]} 21. c3 {[%clk 0:01:59.5]} 21... Be7 {[%clk 0:02:38.5]} 22. Ng3
{[%clk 0:01:48]} 22... hxg4 {[%clk 0:02:30.8]} 23. hxg4 {[%clk 0:01:47.3]} 23...
Bb1 {[%clk 0:02:23.3]} 24. a3 {[%clk 0:01:43.7]} 24... g6 {[%clk 0:02:20.6]} 25.
e6 {[%clk 0:01:36.4]} 25... fxe6 {[%clk 0:02:15.4]} 26. Bxc7 {[%clk 0:01:36.2]}
26... a4 {[%clk 0:02:01.4]} 27. Be5 {[%clk 0:01:33.3]} 27... Rf8 {[%clk
0:01:53]} 28. Bd6 {[%clk 0:01:22.3]} 28... Bxd6 {[%clk 0:01:48.7]} 29. Rxd6
{[%clk 0:01:21.1]} 29... Ke7 {[%clk 0:01:49.6]} 30. Rd4 {[%clk 0:01:19.7]} 30...
b5 {[%clk 0:01:49.8]} 31. Rd2 {[%clk 0:01:06.4]} 31... c5 {[%clk 0:01:46.2]} 32.
Ne2 {[%clk 0:01:04.1]} 32... Rb8 {[%clk 0:01:44.1]} 33. Kg3 {[%clk 0:01:00.8]}
33... b4 {[%clk 0:01:43]} 34. cxb4 {[%clk 0:01:00.7]} 34... cxb4 {[%clk
0:01:43.9]} 35. Rd4 {[%clk 0:00:53.9]} 35... bxa3 {[%clk 0:01:32.8]} 36. bxa3
{[%clk 0:00:53.8]} 36... Bc2 {[%clk 0:01:28.4]} 37. Nc3 {[%clk 0:00:42.7]} 37...
Rb3 {[%clk 0:01:06]} 38. Nxa4 {[%clk 0:00:37.9]} 38... e5 {[%clk 0:01:01.6]} 39.
Rc4 {[%clk 0:00:22.7]} 39... Rxa3 {[%clk 0:00:50.4]} 40. Rxc2 {[%clk 0:00:19.6]}
40... Rxa4 {[%clk 0:00:50.7]} 41. Rc6 {[%clk 0:00:19.3]} 41... Kf7 {[%clk
0:00:49.2]} 42. Rc7+ {[%clk 0:00:16.9]} 42... Kf6 {[%clk 0:00:49.1]} 43. Rc6+
{[%clk 0:00:16.5]} 43... Kf7 {[%clk 0:00:49.5]} 44. g5 {[%clk 0:00:15.5]} 44...
Rb4 {[%clk 0:00:44.7]} 45. Rf6+ {[%clk 0:00:13.7]} 45... Kg7 {[%clk 0:00:44.8]}
46. Re6 {[%clk 0:00:14.1]} 46... Rb5 {[%clk 0:00:42.7]} 47. Re7+ {[%clk
0:00:14.2]} 47... Kf8 {[%clk 0:00:42.7]} 48. Rd7 {[%clk 0:00:13.9]} 48... Rb3
{[%clk 0:00:37.6]} 49. Kf2 {[%clk 0:00:11.5]} 49... Rb5 {[%clk 0:00:12.8]} 50.
Ke3 {[%clk 0:00:11.1]} 50... Rb1 {[%clk 0:00:06.6]} 51. Ke4 {[%clk 0:00:09]}
51... Rg1 {[%clk 0:00:05.7]} 52. Kxe5 {[%clk 0:00:06.3]} 52... Rxg5+ {[%clk
0:00:05.9]} 53. Kf6 {[%clk 0:00:02.6]} 53... Rf5+ {[%clk 0:00:06.3]} 54. Kxg6
{[%clk 0:00:02.9]} 54... Rxf3 {[%clk 0:00:06.7]} 55. Rd5 {[%clk 0:00:01.6]}
55... Ke7 {[%clk 0:00:06.8]} 56. Rf5 {[%clk 0:00:01.1]} 56... Rxf5 {[%clk
0:00:07]} 57. Kxf5 {[%clk 0:00:01.4]} 1/2-1/2

[Event "Early-Titled-Tuesday-Blitz-March-26-2024"]
[Site "Chess.com"]
[Date "2024.03.26"]
[Round "8"]
[White "SashaKuzhilniy"]
[Black "scarabee43"]
[Result "1-0"]
[WhiteElo "2633"]
[BlackElo "2836"]
[TimeControl "180+1"]
[EndTime "9:26:05 PDT"]
[Termination "SashaKuzhilniy won by checkmate"]

1. c4 {[%clk 0:03:00.9]} 1... Nf6 {[%clk 0:02:59.5]} 2. g3 {[%clk 0:03:01]} 2...
e6 {[%clk 0:02:58.7]} 3. Bg2 {[%clk 0:03:00.8]} 3... d5 {[%clk 0:02:58.9]} 4.
Nf3 {[%clk 0:03:01.3]} 4... Be7 {[%clk 0:02:59.1]} 5. O-O {[%clk 0:03:01.2]}
5... O-O {[%clk 0:02:59.5]} 6. d4 {[%clk 0:03:01.8]} 6... Nbd7 {[%clk
0:02:54.4]} 7. Qc2 {[%clk 0:02:59.6]} 7... b6 {[%clk 0:02:52.3]} 8. cxd5 {[%clk
0:02:52.3]} 8... exd5 {[%clk 0:02:52.9]} 9. Nc3 {[%clk 0:02:49.7]} 9... Bb7
{[%clk 0:02:49.4]} 10. b3 {[%clk 0:02:46.1]} 10... Re8 {[%clk 0:02:48.5]} 11.
Bb2 {[%clk 0:02:45.6]} 11... a6 {[%clk 0:02:45.5]} 12. Rac1 {[%clk 0:02:44.8]}
12... Bd6 {[%clk 0:02:45.6]} 13. Rfd1 {[%clk 0:02:43.8]} 13... h6 {[%clk
0:02:42.1]} 14. e3 {[%clk 0:02:43.9]} 14... Qe7 {[%clk 0:02:41.9]} 15. Ne2
{[%clk 0:02:39.5]} 15... Ne4 {[%clk 0:02:41.2]} 16. Nf4 {[%clk 0:02:31.2]} 16...
a5 {[%clk 0:02:25.7]} 17. Nd3 {[%clk 0:02:26.6]} 17... f6 {[%clk 0:02:25]} 18.
Bh3 {[%clk 0:02:15.4]} 18... Nf8 {[%clk 0:02:24]} 19. Nh4 {[%clk 0:02:13.1]}
19... Bc8 {[%clk 0:02:20.7]} 20. Bxc8 {[%clk 0:02:09.4]} 20... Raxc8 {[%clk
0:02:20.4]} 21. Nf5 {[%clk 0:02:09.9]} 21... Qd7 {[%clk 0:02:16.9]} 22. Nxd6
{[%clk 0:02:09.9]} 22... Nxd6 {[%clk 0:02:16.7]} 23. Qc6 {[%clk 0:02:06.7]}
23... Qf5 {[%clk 0:02:12]} 24. Nf4 {[%clk 0:02:04.1]} 24... Ne6 {[%clk
0:02:05.4]} 25. Qxd5 {[%clk 0:01:53.2]} 25... Kh7 {[%clk 0:01:55.9]} 26. Qxf5+
{[%clk 0:01:52.3]} 26... Nxf5 {[%clk 0:01:55.7]} 27. Nxe6 {[%clk 0:01:47.8]}
27... Rxe6 {[%clk 0:01:56.2]} 28. Rc2 {[%clk 0:01:34.2]} 28... c6 {[%clk
0:01:52.9]} 29. Rdc1 {[%clk 0:01:26.4]} 29... Ne7 {[%clk 0:01:53.4]} 30. Bc3
{[%clk 0:01:21.7]} 30... Nd5 {[%clk 0:01:52.5]} 31. Bd2 {[%clk 0:01:22.3]} 31...
f5 {[%clk 0:01:53]} 32. Kf1 {[%clk 0:01:21.8]} 32... g5 {[%clk 0:01:52.7]} 33.
Ke2 {[%clk 0:01:21.9]} 33... Kg6 {[%clk 0:01:53.4]} 34. Kd3 {[%clk 0:01:22.4]}
34... g4 {[%clk 0:01:51.9]} 35. h3 {[%clk 0:01:18.5]} 35... h5 {[%clk
0:01:45.8]} 36. hxg4 {[%clk 0:01:18.7]} 36... hxg4 {[%clk 0:01:45.8]} 37. Rh1
{[%clk 0:01:18.1]} 37... Nf6 {[%clk 0:01:45.7]} 38. a4 {[%clk 0:01:10.4]} 38...
Ne4 {[%clk 0:01:43.2]} 39. Be1 {[%clk 0:01:10.7]} 39... c5 {[%clk 0:01:42.5]}
40. Rc4 {[%clk 0:01:08.3]} 40... Rd8 {[%clk 0:01:38.2]} 41. Rh2 {[%clk
0:00:56.8]} 41... cxd4 {[%clk 0:01:31.2]} 42. Rxd4 {[%clk 0:00:55.8]} 42... Nc5+
{[%clk 0:01:31]} 43. Kc3 {[%clk 0:00:44.6]} 43... Rc8 {[%clk 0:01:20.5]} 44. Rc4
{[%clk 0:00:41.1]} 44... Ne4+ {[%clk 0:01:19.5]} 45. Kb2 {[%clk 0:00:35.2]}
45... Rxc4 {[%clk 0:01:19.1]} 46. bxc4 {[%clk 0:00:36.1]} 46... Rd6 {[%clk
0:01:17.9]} 47. Bc3 {[%clk 0:00:28.3]} 47... Rc6 {[%clk 0:01:01.4]} 48. Kb3
{[%clk 0:00:18.2]} 48... Nc5+ {[%clk 0:01:01.9]} 49. Ka3 {[%clk 0:00:18.6]}
49... Ne4 {[%clk 0:00:59.1]} 50. Kb3 {[%clk 0:00:18.9]} 50... Nd6 {[%clk
0:00:58.8]} 51. Rh8 {[%clk 0:00:17.3]} 51... Nxc4 {[%clk 0:00:59.3]} 52. Rg8+
{[%clk 0:00:16.9]} 52... Kf7 {[%clk 0:00:57.5]} 53. Rg5 {[%clk 0:00:13.1]} 53...
Rc5 {[%clk 0:00:52.9]} 54. Bd4 {[%clk 0:00:11.2]} 54... Nd2+ {[%clk 0:00:53.3]}
55. Kb2 {[%clk 0:00:10.9]} 55... Rd5 {[%clk 0:00:52.9]} 56. Rg7+ {[%clk
0:00:10.2]} 56... Kf8 {[%clk 0:00:52.2]} 57. Rb7 {[%clk 0:00:10.7]} 57... Ne4
{[%clk 0:00:52.7]} 58. Rxb6 {[%clk 0:00:10.7]} 58... Nxf2 {[%clk 0:00:50.5]} 59.
Kb3 {[%clk 0:00:05.5]} 59... Ne4 {[%clk 0:00:49.6]} 60. Kc4 {[%clk 0:00:05.7]}
60... Rd7 {[%clk 0:00:47.5]} 61. Be5 {[%clk 0:00:05.5]} 61... Rd2 {[%clk
0:00:38.3]} 62. Bf4 {[%clk 0:00:03.9]} 62... Ra2 {[%clk 0:00:37.5]} 63. Kb3
{[%clk 0:00:03.7]} 63... Ra1 {[%clk 0:00:37.1]} 64. Rb5 {[%clk 0:00:03.3]} 64...
Nd2+ {[%clk 0:00:32.3]} 65. Kc3 {[%clk 0:00:03.1]} 65... Nf3 {[%clk 0:00:31.9]}
66. Rxf5+ {[%clk 0:00:02.7]} 66... Ke7 {[%clk 0:00:32.4]} 67. Rxa5 {[%clk
0:00:03.6]} 67... Rc1+ {[%clk 0:00:32.5]} 68. Kd3 {[%clk 0:00:03.8]} 68... Ke6
{[%clk 0:00:31.7]} 69. Ke4 {[%clk 0:00:04.3]} 69... Rc4+ {[%clk 0:00:31.3]} 70.
Kd3 {[%clk 0:00:04.7]} 70... Rb4 {[%clk 0:00:31.9]} 71. Ra6+ {[%clk 0:00:05.1]}
71... Kd5 {[%clk 0:00:31.8]} 72. e4+ {[%clk 0:00:04.9]} 72... Kc5 {[%clk
0:00:31.4]} 73. Bd6# {[%clk 0:00:05.3]} 1-0

[Event "Early-Titled-Tuesday-Blitz-March-26-2024"]
[Site "Chess.com"]
[Date "2024.03.26"]
[Round "8"]
[White "SpeedofLight0"]
[Black "Kirill_Klukin"]
[Result "1-0"]
[WhiteElo "3064"]
[BlackElo "2833"]
[TimeControl "180+1"]
[EndTime "9:26:06 PDT"]
[Termination "SpeedofLight0 won on time"]

1. d4 {[%clk 0:02:59.8]} 1... e6 {[%clk 0:02:59]} 2. Nc3 {[%clk 0:02:59.5]} 2...
d5 {[%clk 0:02:58.8]} 3. Bf4 {[%clk 0:02:58.9]} 3... a6 {[%clk 0:02:51.9]} 4. e3
{[%clk 0:02:58]} 4... Nf6 {[%clk 0:02:51.3]} 5. Nf3 {[%clk 0:02:55.3]} 5... c5
{[%clk 0:02:51.3]} 6. Bd3 {[%clk 0:02:54.2]} 6... b5 {[%clk 0:02:50.1]} 7. O-O
{[%clk 0:02:52.8]} 7... Bb7 {[%clk 0:02:50.2]} 8. Bg5 {[%clk 0:02:51.5]} 8...
Nbd7 {[%clk 0:02:49.5]} 9. dxc5 {[%clk 0:02:49.2]} 9... Nxc5 {[%clk 0:02:48.5]}
10. a4 {[%clk 0:02:46.9]} 10... b4 {[%clk 0:02:38.7]} 11. Ne2 {[%clk 0:02:46.4]}
11... Be7 {[%clk 0:02:34.8]} 12. Ne5 {[%clk 0:02:36.7]} 12... O-O {[%clk
0:02:29.2]} 13. Nd4 {[%clk 0:02:35.6]} 13... Nfe4 {[%clk 0:02:17.1]} 14. Nec6
{[%clk 0:02:27.7]} 14... Bxg5 {[%clk 0:02:06.8]} 15. Nxd8 {[%clk 0:02:26.8]}
15... Rfxd8 {[%clk 0:02:07.5]} 16. Qe2 {[%clk 0:01:46.4]} 16... Bf6 {[%clk
0:02:00.2]} 17. Rfd1 {[%clk 0:01:43.9]} 17... Nd6 {[%clk 0:01:57.8]} 18. Qh5
{[%clk 0:01:31.8]} 18... g6 {[%clk 0:01:53.6]} 19. Qf3 {[%clk 0:01:31.2]} 19...
Bg7 {[%clk 0:01:51.2]} 20. Qh3 {[%clk 0:01:27.1]} 20... Rac8 {[%clk 0:01:36.6]}
21. Rac1 {[%clk 0:01:24.8]} 21... e5 {[%clk 0:01:22.8]} 22. Nb3 {[%clk
0:01:21.2]} 22... e4 {[%clk 0:01:23.2]} 23. Nxc5 {[%clk 0:01:18.3]} 23... Rxc5
{[%clk 0:01:23.2]} 24. Bf1 {[%clk 0:01:03.1]} 24... Bxb2 {[%clk 0:01:19.6]} 25.
Qh4 {[%clk 0:01:00]} 25... Rcc8 {[%clk 0:01:09]} 26. Rb1 {[%clk 0:00:59.3]}
26... Nf5 {[%clk 0:01:08.6]} 27. Qg5 {[%clk 0:00:56.4]} 27... h6 {[%clk
0:01:08.5]} 28. Qf4 {[%clk 0:00:56.3]} 28... Bc3 {[%clk 0:01:02.9]} 29. g4
{[%clk 0:00:52.5]} 29... Nh4 {[%clk 0:00:56]} 30. Qxh6 {[%clk 0:00:53.1]} 30...
Nf3+ {[%clk 0:00:56.2]} 31. Kg2 {[%clk 0:00:53.6]} 31... Bg7 {[%clk 0:00:51.1]}
32. Qh3 {[%clk 0:00:52.7]} 32... a5 {[%clk 0:00:33.1]} 33. Be2 {[%clk
0:00:38.6]} 33... d4 {[%clk 0:00:23]} 34. Qg3 {[%clk 0:00:21.9]} 34... Be5
{[%clk 0:00:22.5]} 35. Qh3 {[%clk 0:00:21.3]} 35... Rxc2 {[%clk 0:00:20.5]} 36.
Bxf3 {[%clk 0:00:19.6]} 36... exf3+ {[%clk 0:00:20.9]} 37. Kg1 {[%clk
0:00:20.2]} 37... Kg7 {[%clk 0:00:20]} 38. exd4 {[%clk 0:00:18.7]} 38... Rxd4
{[%clk 0:00:10.3]} 39. g5 {[%clk 0:00:14.3]} 39... Bc8 {[%clk 0:00:08.4]} 40.
Qh6+ {[%clk 0:00:05.9]} 40... Kg8 {[%clk 0:00:08.7]} 41. Rxd4 {[%clk 0:00:06.8]}
41... Bxd4 {[%clk 0:00:09.1]} 42. Rd1 {[%clk 0:00:07.7]} 42... Bxf2+ {[%clk
0:00:05.4]} 43. Kh1 {[%clk 0:00:07.1]} 43... Bb6 {[%clk 0:00:06]} 44. Qh4 {[%clk
0:00:05.2]} 44... f2 {[%clk 0:00:05.5]} 45. Qe4 {[%clk 0:00:05.8]} 45... Rc7
{[%clk 0:00:04.7]} 46. Qe8+ {[%clk 0:00:04.4]} 46... Kh7 {[%clk 0:00:04.7]} 47.
Kg2 {[%clk 0:00:05.3]} 47... Bg4 {[%clk 0:00:03.4]} 48. Rd8 {[%clk 0:00:04.4]}
48... Bh3+ {[%clk 0:00:03.9]} 49. Kg3 {[%clk 0:00:04.5]} 49... Rc3+ {[%clk
0:00:03.3]} 50. Kh4 {[%clk 0:00:04.3]} 50... Rc4+ {[%clk 0:00:03.9]} 51. Kg3
{[%clk 0:00:04.7]} 51... Bc7+ {[%clk 0:00:01.7]} 52. Rd6 {[%clk 0:00:02.7]} 1-0

[Event "Early-Titled-Tuesday-Blitz-March-26-2024"]
[Site "Chess.com"]
[Date "2024.03.26"]
[Round "8"]
[White "Adar_07"]
[Black "chess_blitz00"]
[Result "0-1"]
[WhiteElo "2781"]
[BlackElo "2583"]
[TimeControl "180+1"]
[EndTime "9:26:07 PDT"]
[Termination "chess_blitz00 won by resignation"]

1. d4 {[%clk 0:03:00]} 1... d6 {[%clk 0:02:59.8]} 2. e4 {[%clk 0:02:59]} 2...
Nf6 {[%clk 0:02:59.4]} 3. Nc3 {[%clk 0:02:59.3]} 3... e5 {[%clk 0:03:00.1]} 4.
dxe5 {[%clk 0:02:59.5]} 4... dxe5 {[%clk 0:03:01]} 5. Qxd8+ {[%clk 0:03:00.1]}
5... Kxd8 {[%clk 0:03:01.9]} 6. Bg5 {[%clk 0:03:00.6]} 6... c6 {[%clk
0:02:50.9]} 7. f4 {[%clk 0:03:00]} 7... Nd7 {[%clk 0:02:28.3]} 8. Nf3 {[%clk
0:02:59.5]} 8... h6 {[%clk 0:02:22.8]} 9. Bxf6+ {[%clk 0:02:58]} 9... gxf6
{[%clk 0:02:23.7]} 10. f5 {[%clk 0:02:57.2]} 10... Bc5 {[%clk 0:02:17.1]} 11.
Bc4 {[%clk 0:02:55.9]} 11... Ke7 {[%clk 0:02:15.9]} 12. Rd1 {[%clk 0:02:50.1]}
12... a5 {[%clk 0:02:13.1]} 13. a4 {[%clk 0:02:49.3]} 13... Nb6 {[%clk
0:02:00.6]} 14. Bb3 {[%clk 0:02:48.9]} 14... Bd7 {[%clk 0:01:58.2]} 15. Ke2
{[%clk 0:02:45.8]} 15... Rad8 {[%clk 0:01:58.4]} 16. Rd3 {[%clk 0:02:39]} 16...
Bc8 {[%clk 0:01:58.3]} 17. Rhd1 {[%clk 0:02:38.1]} 17... Rxd3 {[%clk 0:01:57.9]}
18. Rxd3 {[%clk 0:02:38.7]} 18... Rd8 {[%clk 0:01:57.6]} 19. Rxd8 {[%clk
0:02:24.6]} 19... Kxd8 {[%clk 0:01:58.5]} 20. Bxf7 {[%clk 0:02:25.2]} 20... Bb4
{[%clk 0:01:48.3]} 21. Bb3 {[%clk 0:02:24.9]} 21... Bxc3 {[%clk 0:01:39.8]} 22.
bxc3 {[%clk 0:02:25.1]} 22... c5 {[%clk 0:01:39.6]} 23. h4 {[%clk 0:02:08.9]}
23... Bd7 {[%clk 0:01:17.9]} 24. g4 {[%clk 0:01:50.7]} 24... Bxa4 {[%clk
0:00:40.3]} 25. g5 {[%clk 0:01:49.2]} 25... hxg5 {[%clk 0:00:37.2]} 26. hxg5
{[%clk 0:01:39.5]} 26... Ke7 {[%clk 0:00:36.5]} 27. Be6 {[%clk 0:00:58.6]} 27...
Bb5+ {[%clk 0:00:28.9]} 28. Kf2 {[%clk 0:00:55.1]} 28... Bc4 {[%clk 0:00:22.8]}
29. g6 {[%clk 0:00:20]} 29... Bxe6 {[%clk 0:00:21]} 30. fxe6 {[%clk 0:00:20.9]}
30... Kxe6 {[%clk 0:00:20.1]} 31. Kg3 {[%clk 0:00:21.1]} 31... a4 {[%clk
0:00:18.8]} 32. Nd2 {[%clk 0:00:19.8]} 32... a3 {[%clk 0:00:17.8]} 33. Nb3
{[%clk 0:00:19.7]} 33... Nd7 {[%clk 0:00:16.5]} 34. c4 {[%clk 0:00:18.7]} 34...
Ke7 {[%clk 0:00:11.7]} 35. Kg4 {[%clk 0:00:18.9]} 35... Kf8 {[%clk 0:00:10.2]}
36. Kf5 {[%clk 0:00:18.4]} 36... Kg7 {[%clk 0:00:10.7]} 37. Ke6 {[%clk
0:00:18.3]} 37... Nb6 {[%clk 0:00:09.2]} 38. Nxc5 {[%clk 0:00:14.6]} 38... a2
{[%clk 0:00:08.5]} 39. Nb3 {[%clk 0:00:14]} 39... Nxc4 {[%clk 0:00:08.7]} 40.
Kd7 {[%clk 0:00:10.3]} 40... b5 {[%clk 0:00:06]} 41. Na1 {[%clk 0:00:08.3]}
41... b4 {[%clk 0:00:05]} 42. Kc6 {[%clk 0:00:08.4]} 42... Nd2 {[%clk
0:00:02.6]} 43. Kb5 {[%clk 0:00:07.7]} 43... Nxe4 {[%clk 0:00:03.4]} 44. Kxb4
{[%clk 0:00:07.9]} 44... f5 {[%clk 0:00:04.3]} 45. Kc4 {[%clk 0:00:07.2]} 45...
f4 {[%clk 0:00:04.9]} 46. Kd3 {[%clk 0:00:06.8]} 46... Nd6 {[%clk 0:00:03.7]}
47. c4 {[%clk 0:00:06.4]} 47... Kxg6 {[%clk 0:00:04.2]} 48. c5 {[%clk
0:00:06.7]} 48... Nc8 {[%clk 0:00:04.9]} 49. Nb3 {[%clk 0:00:06.4]} 49... Kf5
{[%clk 0:00:04.9]} 50. c6 {[%clk 0:00:04.8]} 50... e4+ {[%clk 0:00:04.5]} 51.
Kd4 {[%clk 0:00:05.3]} 51... f3 {[%clk 0:00:04.4]} 52. Ke3 {[%clk 0:00:06.2]}
52... Ke5 {[%clk 0:00:04.7]} 53. Na1 {[%clk 0:00:06]} 53... Kd5 {[%clk
0:00:04.7]} 54. Nc2 {[%clk 0:00:05.9]} 54... Kc4 {[%clk 0:00:04.4]} 55. Kxe4
{[%clk 0:00:03.4]} 55... f2 {[%clk 0:00:04.6]} 56. Ne3+ {[%clk 0:00:01.6]} 56...
Kb5 {[%clk 0:00:04.2]} 57. Nd1 {[%clk 0:00:01.6]} 57... f1=Q {[%clk 0:00:03.8]}
58. Nc3+ {[%clk 0:00:01.9]} 58... Kb6 {[%clk 0:00:04.4]} 59. Nxa2 {[%clk
0:00:02]} 59... Qc4+ {[%clk 0:00:04.7]} 60. Ke3 {[%clk 0:00:02.6]} 60... Qxa2
{[%clk 0:00:05.4]} 0-1